[Event "Czech Open Rapid G1 2024"]
[Site "Pardubice"]
[Date "2024.07.18"]
[Round "8.12"]
[White "Berin, Artem"]
[Black "Konopka, Michal"]
[Result "0-1"]
[Annotator "RC"]
[ECO "D82"]
[WhiteElo "2234"]
[BlackElo "2326"]
[PlyCount "144"]
[EventDate "2024.07.16"]
[EventType "swiss"]
[EventCountry "CZE"]
[SourceTitle "playchess.com"]
[Source "ChessBase"]
[SourceQuality "1"]
[TimeControl "1200+10"]

1. d4 {[%emt 0:00:02]} Nf6 {[%emt 0:02:51]} 2. c4 {[%emt 0:00:02]} g6 {[%emt 0:00:07]} 3. Nc3 {[%emt 0:00:02]} d5 {[%emt 0:00:03]} 4. Bf4 {[%emt 0:00:50]} Bg7 {[%emt 0:00:08]} 5. e3 {[%emt 0:00:01]} c5 {[%emt 0:00:39]} 6. dxc5 {[%emt 0:00:18]} Qa5 {[%emt 0:00:14]} 7. Rc1 {[%emt 0:01:44]} dxc4 {[%emt 0:02:17]} 8. Bxc4 {[%emt 0:00:18]} O-O {[%emt 0:00:05]} 9. Nge2 {[%emt 0:00:12]} Na6 {[%emt 0:02:28]} 10. Bxa6 {[%emt 0:05:32]} bxa6 {[%emt 0:02:04]} 11. O-O {[%emt 0:00:22]} Qxc5 {[%emt 0:00:26]} 12. Qa4 {[%emt 0:00:10]} a5 {[%emt 0:04:13]} 13. Rfd1 {[%emt 0:00:30]} Qb4 {[%emt 0:01:05]} 14. a3 {[%emt 0:00:34]} Qxa4 {[%emt 0:01:30]} 15. Nxa4 {[%emt 0:00:03]} Be6 {[%emt 0:00:53]} 16. Nc5 {[%emt 0:00:29]} Nd5 {[%emt 0:00:07]} 17. Nxe6 {[%emt 0:04:12]} fxe6 {[%emt 0:00:02]} 18. Rd2 {[%emt 0:01:08]} Rfc8 {[%emt 0:00:22]} 19. Rcd1 {[%emt 0:03:39]} Nxf4 {[%emt 0:00:21]} 20. Nxf4 {[%emt 0:00:01]} Kf7 {[%emt 0:00:01]} 21. Kf1 {[%emt 0:00:22]} Rab8 {[%emt 0:00:03]} 22. Nd3 {[%emt 0:00:25]} Rb3 {[%emt 0:00:14]} 23. e4 {[%emt 0:00:09]} g5 {[%emt 0:00:51]} 24. g4 {[%emt 0:00:34]} Rc4 {[%emt 0:00:33]} 25. f3 {[%emt 0:00:03]} Bd4 {[%emt 0:01:07]} 26. Nc1 {[%emt 0:00:44]} Rxc1 {[%emt 0:00:15]} 27. Rxc1 {[%emt 0:00:18]} Be3 {[%emt 0:00:01]} 28. Rcc2 {[%emt 0:00:06]} Bxd2 29. Rxd2 {[%emt 0:00:01]} Rxf3+ {[%emt 0:00:03]} 30. Kg2 {[%emt 0:00:26]} Rb3 {[%emt 0:00:25]} 31. Re2 {[%emt 0:00:34]} e5 {[%emt 0:00:18]} 32. Kf2 {[%emt 0:00:04]} Ke6 {[%emt 0:00:03]} 33. Rd2 {[%emt 0:00:01]} Rh3 {[%emt 0:00:05]} 34. Kg2 {[%emt 0:00:36]} Re3 {[%emt 0:00:01]} 35. Rd5 {[%emt 0:00:14]} a4 {[%emt 0:00:06]} 36. Ra5 {[%emt 0:00:10]} Rxe4 {[%emt 0:00:01]} 37. Kg3 {[%emt 0:00:29]} Re3+ {[%emt 0:00:07]} 38. Kg2 {[%emt 0:00:03]} Rb3 {[%emt 0:00:03]} 39. Rxa4 {[%emt 0:00:06]} Rxb2+ {[%emt 0:00:04]} 40. Kg3 {[%emt 0:00:01]} Rb3+ {[%emt 0:00:02]} 41. Kf2 {[%emt 0:00:05]} Rb7 {[%emt 0:00:42]} 42. Ra5 {[%emt 0:00:03]} h6 {[%emt 0:00:12]} 43. Kf3 {[%emt 0:00:39]} Kf6 {[%emt 0:00:17]} 44. Ra6+ {[%emt 0:00:06]} e6 {[%emt 0:00:02]} 45. Ra4 {[%emt 0:00:18]} Rb3+ {[%emt 0:00:06]} 46. Kf2 {[%emt 0:00:11]} e4 {[%emt 0:00:11]} 47. Rxa7 {[%emt 0:00:03]} Ke5 {[%emt 0:00:03]} 48. Ra6 {[%emt 0:00:18]} Kf4 {[%emt 0:00:12]} 49. Rxe6 {[%emt 0:00:05]} Rxa3 {[%emt 0:00:13]} 50. Rxh6 {[%emt 0:00:17]} Ra2+ {[%emt 0:00:09]} 51. Kf1 {[%emt 0:00:03]} Kxg4 {[%emt 0:00:37]} 52. Re6 {[%emt 0:00:07]} Rxh2 {[%emt 0:00:21]} 53. Kg1 {[%emt 0:00:24]} Kf5 {[%emt 0:00:22]} 54. Re8 {[%emt 0:00:08]} Rb2 {[%emt 0:00:03]} 55. Kf1 {[%emt 0:00:03]} g4 {[%emt 0:00:05]} 56. Rf8+ {[%emt 0:00:00]} Ke5 {[%emt 0:00:00]} 57. Kg1 {[%emt 0:00:00]} e3 {[%emt 0:00:00]} 58. Kf1 {[%emt 0:00:00]} Ke4 {[%emt 0:00:09]} 59. Rg8 {[%emt 0:00:08]} Kf3 {[%emt 0:00:10]} 60. Rf8+ {[%emt 0:00:01]} Kg3 {[%emt 0:00:01]} 61. Rg8 {[%emt 0:00:06]} Rf2+ {[%emt 0:00:08]} 62. Ke1 {[%emt 0:00:06]} Kf3 {[%emt 0:00:08]} 63. Rf8+ {[%emt 0:00:13]} Kg2 {[%emt 0:00:04]} 64. Re8 {[%emt 0:00:03]} e2 {[%emt 0:00:15]} 65. Rg8 {[%emt 0:00:30]} g3 {[%emt 0:00:07]} 66. Rg7 {[%emt 0:00:12]} Kh2 {[%emt 0:00:18]} 67. Rh7+ {[%emt 0:00:08]} Kg1 {[%emt 0:00:02]} 68. Rg7 {[%emt 0:00:01]} g2 {[%emt 0:00:02]} 69. Rh7 {[%emt 0:00:09]} Rf1+ {[%emt 0:00:23]} 70. Kxe2 {[%emt 0:00:04]} Rf6 {[%emt 0:00:03]} 71. Ra7 {[%emt 0:00:53]} Rh6 {[%emt 0:00:36]} 72. Kf3 {[%emt 0:00:25]} Kh1 {[%emt 0:00:20]} 0-1

[Event "Czech Open Rapid G1 2024"]
[Site "Pardubice"]
[Date "2024.07.18"]
[Round "8.13"]
[White "Cerveny, Martin"]
[Black "Shilon Rahav, Eliran"]
[Result "1-0"]
[Annotator "RC"]
[ECO "D31"]
[WhiteElo "2325"]
[BlackElo "2055"]
[PlyCount "35"]
[EventDate "2024.07.16"]
[EventType "swiss"]
[EventCountry "CZE"]
[SourceTitle "playchess.com"]
[Source "ChessBase"]
[SourceQuality "1"]
[TimeControl "1200+10"]

1. d4 {[%emt 0:00:01]} d5 {[%emt 0:00:01]} 2. c4 {[%emt 0:00:01]} e6 {[%emt 0:00:02]} 3. Nc3 {[%emt 0:00:01]} c6 {[%emt 0:00:02]} 4. e4 {[%emt 0:00:04]} dxe4 {[%emt 0:00:02]} 5. Nxe4 {[%emt 0:00:02]} Bb4+ {[%emt 0:00:02]} 6. Bd2 {[%emt 0:00:01]} Qxd4 {[%emt 0:00:03]} 7. Bxb4 {[%emt 0:00:01]} Qxe4+ {[%emt 0:00:03]} 8. Be2 {[%emt 0:00:02]} Na6 {[%emt 0:00:02]} 9. Bd6 {[%emt 0:00:07]} Bd7 {[%emt 0:00:59]} 10. Nf3 {[%emt 0:00:02]} O-O-O {[%emt 0:00:28]} 11. O-O {[%emt 0:00:28]} Be8 {[%emt 0:00:54]} 12. Re1 {[%emt 0:01:50]} c5 {[%emt 0:01:19]} 13. Bd3 {[%emt 0:02:23]} Qc6 {[%emt 0:00:13]} 14. Bg3 {[%emt 0:00:03]} Nb4 {[%emt 0:00:32]} 15. Ne5 {[%emt 0:00:01]} Qa6 {[%emt 0:00:21]} 16. Qe2 {[%emt 0:00:13]} Nxd3 {[%emt 0:04:18]} 17. Nxd3 {[%emt 0:00:03]} Qxc4 {[%emt 0:00:04]} 18. Qe5 {[%emt 0:00:17]} 1-0

[Event "Czech Open Rapid G1 2024"]
[Site "Pardubice"]
[Date "2024.07.18"]
[Round "8.14"]
[White "Fishchuk, Vladyslav"]
[Black "Bures, Jaroslav"]
[Result "1/2-1/2"]
[Annotator "TA"]
[ECO "A00"]
[WhiteElo "2234"]
[BlackElo "2418"]
[PlyCount "79"]
[EventDate "2024.07.16"]
[EventType "swiss"]
[EventCountry "CZE"]
[SourceTitle "playchess.com"]
[Source "ChessBase"]
[SourceQuality "1"]
[TimeControl "1200+10"]

{[%evp 16,79,45,29,132,52,130,-75,-48,-51,-54,-38,-40,-47,-34,-35,-29,-29,0,0,0,-116,-121,-196,-31,-29,-33,-132,-131,-133,-120,-109,-120,-122,-125,-127,-66,-62,0,0,28,14,25,0,0,0,0,0,0,0,0,0,1718,7,5,5,8,0,0,0,0,0,0,0,0,0]} 1. Nc3 {[%emt 0:00:01]} c5 {[%emt 0:00:15]} 2. Nf3 {[%emt 0:00:02]} g6 {[%emt 0:00:16]} 3. d4 {[%emt 0:00:02]} cxd4 {[%emt 0:00:04]} 4. Qxd4 {[%emt 0:00:02]} Nf6 {[%emt 0:00:33]} 5. Qh4 {[%emt 0:00:02]} Nc6 {[%emt 0:00:45]} 6. e4 {[%emt 0:00:03] A00: Irregular Openings.} d6 {[%emt 0:00:23]} 7. Bc4 {[%emt 0:00:31]} h5 $146 {[%emt 0:02:19]} ({Predecessor:} 7... Qa5 8. O-O Bg7 9. Bh6 O-O 10. Ng5 e6 11. Rad1 Ne5 12. Bb3 Bxh6 13. Qxh6 Neg4 {0-1 Grafl,F (2353)-Donchenko,A (2648) GER-ch Net blitz qual5 2020 (9)}) 8. Bg5 {[%emt 0:00:22]} Bg7 {[%emt 0:00:06]} 9. O-O-O {[%emt 0:00:12]} Qb6 {[%emt 0:01:18]} (9... Nh7 $11) 10. Bb3 {[%emt 0:00:20]} ({White should play} 10. Rxd6 $1 $16 Qc5 11. Bxf6 Bxf6 12. Rxf6 Qxc4 13. Rf4) 10... Na5 {[%emt 0:02:44]} (10... Be6 $14) 11. Nd5 $2 {[%emt 0:01:01]} (11. Ba4+ $16 {stays on course.} Nc6 12. h3) 11... Nxb3+ {[%emt 0:00:07]} 12. axb3 {[%emt 0:00:01]} Nxd5 {[%emt 0:00:03]} 13. exd5 {[%emt 0:00:03]} Bf5 {[%emt 0:02:22]} (13... O-O {simplifies} 14. Be3 Qc7 15. Qc4 Qxc4 16. bxc4 Bg4) 14. Nd4 {[%emt 0:01:34]} (14. Bxe7 $2 Rc8 (14... Qc7 $2 15. Rd2 $19) 15. Qa4+ Kxe7 $19) 14... Bg4 {[%emt 0:01:30]} 15. f3 $1 {[%emt 0:01:00]} Bxd4 {[%emt 0:00:20]} 16. fxg4 {[%emt 0:00:02]} Rc8 {[%emt 0:02:49]} 17. Kb1 {[%emt 0:01:41]} (17. Bxe7 $2 Qxb3 (17... hxg4 18. Qxg4 Be3+ 19. Kb1 $19) 18. Rd2 Qxb2+ (18... Qxd5 $2 19. Re1 $18) 19. Kd1 Qa1+ 20. Ke2 Qxh1 $19) 17... Qc5 {[%emt 0:01:15]} 18. Rd2 {[%emt 0:00:01]} (18. Bxe7 $2 Qxc2+ 19. Ka2 Qxb2#) (18. c3 $11 {keeps the balance.} Be5 19. Rhe1 (19. Bxe7 $2 hxg4 20. Qxg4 Kxe7 $19) 19... hxg4 20. Qxg4) 18... f6 $17 {[%emt 0:01:12]} 19. gxh5 {[%emt 0:03:04]} (19. Re1 $17 {keeps fighting.} fxg5 20. Qxg5) 19... Bxb2 $2 {[%emt 0:00:03]} (19... Be5 $1 $19 20. Bf4 g5 (20... gxh5 21. Bxe5 fxe5 22. Qh3 $16) (20... Rxh5 21. Qg3 $17) 21. Bxg5 fxg5 22. Qxg5 Kd7) 20. Kxb2 $15 {[%emt 0:03:49]} Rxh5 {[%emt 0:00:02]} 21. Qa4+ {[%emt 0:01:30]} (21. Qe4 $1 $15 Rxg5 22. Re2) 21... b5 $17 {[%emt 0:00:01]} 22. Qe4 {[%emt 0:00:01]} Qc3+ {[%emt 0:01:34]} 23. Kb1 {[%emt 0:00:01]} Rxg5 {[%emt 0:00:02]} 24. Re1 {[%emt 0:00:38]} Rc7 {[%emt 0:00:31]} (24... Qxd2 25. Qxe7#) 25. Rde2 {[%emt 0:00:01] [#]} Kf8 {[%emt 0:00:35]} (25... Qe5 $1 $17 {[%cal Re5e4] aiming for ...Qxe4.} 26. Qh4 Rh5 (26... Qxd5 27. Qh8+ Kd7 28. Rxe7+ Kc6 29. Rxc7+ Kxc7 30. Re7+ Kb6 31. Qb8+ Ka5 32. Qxa7+ Kb4 33. Kb2)) 26. h4 $15 {[%emt 0:00:23]} Rg3 {[%emt 0:00:57]} ({Black should try} 26... f5 $1 $15 27. Qf4 Rg4 28. Qh6+ Qg7 29. Qxg7+ Kxg7 30. Rxe7+ Rxe7 31. Rxe7+ Kh6) 27. Qf4 $1 $11 {[%emt 0:00:18]} Rxg2 {[%emt 0:01:18]} 28. Qh6+ {[%emt 0:00:05]} Kg8 {[%emt 0:00:01]} 29. Rxg2 {[%emt 0:00:55]} Qxe1+ {[%emt 0:00:01]} 30. Ka2 {[%emt 0:00:23]} g5 {[%emt 0:01:10]} 31. hxg5 {[%emt 0:00:15]} Qa5+ $1 {[%emt 0:00:22]} (31... Qe4 32. g6 e6 (32... Qxg2 33. Qh7+ Kf8 34. Qh8#) (32... Rxc2+ 33. Ka3 b4+ 34. Ka4) 33. g7 Rxc2+ (33... Qxg2 34. Qh8+ Kf7 35. Qf8+ Kg6 36. g8=Q+ Kh5 37. Qxg2) 34. Ka3 b4+ (34... Rxg2 $2 35. Qh8+ Kf7 36. Qf8+ Kg6 37. g8=Q+ Kf5 38. Qh7+ Rg6 39. Qfh6 $18) 35. Ka4 Rxg2 36. Qh8+ (36. Qxf6 $2 Ra2+ 37. Kb5 Qxd5+ 38. Kxb4 Qc5#) 36... Kf7 37. Qf8+ Kg6 38. g8=Q+ (38. g8=R+ $2 Kf5 $19) 38... Kf5 39. Qh7+ Ke5 40. Qxe4+ (40. Qxa7 Ra2+ 41. Kb5 Rxa7 42. Qc8 Qxd5+ 43. Kxb4 Qa5+ 44. Kc4 Qb6) 40... Kxe4 41. dxe6 $18) 32. Kb1 {[%emt 0:00:02]} (32. Kb2 $5 Qc3+ $8 33. Kb1 Qe1+ 34. Ka2 Qa5+ (34... Qe4 $2 35. g6 $18) 35. Kb2 Qc3+ 36. Kb1 Qe1+ 37. Ka2 $11) 32... Qe1+ {[%emt 0:00:02]} 33. Ka2 {[%emt 0:00:01]} Qe4 $2 {[%emt 0:00:08][%mdl 8192] [#]} (33... Qa5+ $11 34. Kb1 Qe1+ 35. Ka2) 34. Qh2 $2 {[%emt 0:00:12]} (34. g6 $1 $18 {Intending Qh7+ and mate.} e6 35. g7 Rxc2+ 36. Ka3 Rxg2 37. Qh8+ (37. Qxf6 {leads to mate.} b4+ 38. Ka4 Ra2+ 39. Kb5 Qxd5+ 40. Kxb4 Qc5#) 37... Kf7 38. Qf8+ Kg6 39. g8=Q+ (39. g8=R+ $2 Kf5 $19) 39... Kf5 40. Qh7+ Ke5 41. Qxe4+ (41. Qxa7 b4+ 42. Ka4 Ra2+ 43. Kb5 Rxa7 44. Qc8 Qxd5+ 45. Kxb4 Qa5+ 46. Kc4 Qb6) 41... Kxe4 42. dxe6) 34... fxg5 $1 $11 {[%emt 0:00:30]} (34... Qxd5 $2 {loses.} 35. gxf6+ $18) ({Avoid the trap} 34... f5 $2 35. g6 e5 36. dxe6 $18) 35. Rxg5+ {[%emt 0:00:35]} Kf7 {[%emt 0:00:04]} 36. Qh5+ {[%emt 0:00:42]} Kf6 {[%emt 0:00:06]} 37. Qh6+ {[%emt 0:00:31]} Kf7 {[%emt 0:00:01]} 38. Qh5+ {[%emt 0:04:46]} Kf6 {[%emt 0:00:01]} 39. Qh6+ {[%emt 0:00:01]} Kf7 {[%emt 0:00:00]} 40. Qh5+ {[%emt 0:00:58]} 1/2-1/2

[Event "Czech Open Rapid G1 2024"]
[Site "Pardubice"]
[Date "2024.07.18"]
[Round "8.15"]
[White "Kusa, Jakub"]
[Black "Ludvik, Tomas"]
[Result "1-0"]
[Annotator "TA"]
[ECO "E09"]
[WhiteElo "2423"]
[BlackElo "2210"]
[PlyCount "117"]
[EventDate "2024.07.16"]
[EventType "swiss"]
[EventCountry "CZE"]
[SourceTitle "playchess.com"]
[Source "ChessBase"]
[SourceQuality "1"]
[TimeControl "1200+10"]

{[%evp 27,117,28,32,25,34,44,41,34,60,40,56,48,81,100,92,82,128,115,205,207,221,172,194,159,210,215,287,286,315,103,205,92,112,116,124,0,8,0,0,0,0,0,0,0,0,0,0,0,126,151,245,247,260,-16,241,241,232,0,678,47,687,700,1142,1102,983,987,5181,5289,5281,5281,1858,1156,1023,976,2948,681,29960,29962,29982,29983,29983,29983,29991,29989,29987,29985,29985,29986,29986,29987,29987,29983]} 1. d4 {[%emt 0:00:03]} d5 {[%emt 0:00:08]} 2. Nf3 {[%emt 0:00:02]} Nf6 {[%emt 0:00:02]} 3. c4 {[%emt 0:00:01]} e6 {[%emt 0:00:15]} 4. g3 {[%emt 0:00:02]} Bb4+ {[%emt 0:00:25]} 5. Bd2 {[%emt 0:00:01]} Be7 {[%emt 0:00:02]} 6. Bg2 {[%emt 0:00:02]} O-O {[%emt 0:00:04]} 7. O-O {[%emt 0:00:03]} c6 {[%emt 0:01:36]} 8. Qc2 {[%emt 0:00:01]} Nbd7 {[%emt 0:00:35]} 9. Bf4 {[%emt 0:00:02]} Nh5 {[%emt 0:02:27]} 10. Bc1 {[%emt 0:00:01]} Nhf6 {[%emt 0:00:12]} 11. Nbd2 {[%emt 0:00:06]} b6 {[%emt 0:00:03]} 12. e4 {[%emt 0:00:03]} Bb7 {[%emt 0:00:02]} 13. e5 {[%emt 0:00:23]} Ne8 {[%emt 0:00:01]} 14. cxd5 {[%emt 0:00:25]} cxd5 {[%emt 0:00:02]} 15. Nb1 {[%emt 0:01:07][%cal Bd2b1,Bb1c3,Bc3e2,Be2f4][%mdl 32]} Nc7 {[%emt 0:01:15]} 16. h4 {[%emt 0:00:06]} h6 {[%emt 0:00:04]} 17. Be3 {[%emt 0:00:24] White is slightly better.} a5 {[%emt 0:00:42]} 18. Nc3 {[%emt 0:01:07]} Ba6 {[%emt 0:00:29]} 19. Rfc1 {[%emt 0:00:53]} b5 {[%emt 0:02:16]} 20. Ne2 {[%emt 0:00:02]} Rc8 {[%emt 0:00:33]} 21. Nf4 {[%emt 0:00:18]} Re8 {[%emt 0:00:39]} (21... Nb6 $142) 22. Nh2 $16 {[%emt 0:01:19] White is much more active.} Na8 {[%emt 0:01:55]} (22... b4 $16 {was necessary.}) 23. Qe2 $18 {[%emt 0:00:32]} Nab6 {[%emt 0:01:37]} 24. Rxc8 {[%emt 0:02:41]} Qxc8 {[%emt 0:00:08]} 25. Rc1 {[%emt 0:00:01]} Qb7 {[%emt 0:00:58]} (25... Qa8 $16) 26. Qg4 {[%emt 0:01:07][%cal Of4e6] Nxe6! is the strong threat.} Bf8 {[%emt 0:00:21]} 27. Nh5 {[%emt 0:00:57][%cal Oh5g7] Strongly threatening Nxg7!} Kh7 {[%emt 0:02:20]} 28. b3 $2 {[%emt 0:04:27]} (28. Qf3 $18) 28... Rc8 {[%emt 0:00:39]} (28... b4 $16) 29. Qf4 {[%emt 0:00:33]} (29. Re1 $1 $18 {has better winning chances.}) 29... Rxc1+ {[%emt 0:00:38]} 30. Bxc1 {[%emt 0:00:01]} Kg8 {[%emt 0:01:20]} 31. Ng4 {[%emt 0:00:25]} ({White has to play} 31. Qg4 $16 g6 32. Be3) 31... b4 $11 {[%emt 0:01:49]} 32. Bf3 {[%emt 0:00:49][%cal Oh5g7]} Qc7 {[%emt 0:00:07]} 33. Nxg7 {[%emt 0:01:04]} Bxg7 {[%emt 0:00:03]} 34. Nxh6+ {[%emt 0:00:01]} Bxh6 {[%emt 0:00:01]} 35. Qxh6 {[%emt 0:00:01]} Qc2 {[%emt 0:00:35][%cal Oc2f5]} 36. Bh5 {[%emt 0:00:43]} Qd3 {[%emt 0:00:59] And now ...Qf1+ would win.} 37. Qg5+ {[%emt 0:00:28]} Kh7 {[%emt 0:00:01]} (37... Kf8 $1 $11 {remains equal.} 38. Qd8+ Kg7 39. Qg5+ Kf8 40. Qd8+ Kg7 41. Qg5+ Kf8) 38. Be3 $40 {[%emt 0:00:26][%mdl 1152] White has strong compensation. White attacks with force. Dancing on a razor blade.} (38. Bxf7 $2 Qf1+ (38... Qxd4 39. Qh6#) 39. Kh2 Qxf2+ 40. Kh1 Qxf7 $19) 38... Qb1+ {[%emt 0:00:42]} (38... Qf5 $16 {is a better defense.}) 39. Kh2 $18 {[%emt 0:00:04]} Qf5 {[%emt 0:00:02]} 40. Qh6+ {[%emt 0:00:38]} (40. Qxf5+ $6 exf5 41. Bxf7 Kg7 $18) 40... Kg8 {[%emt 0:00:03]} 41. g4 {[%emt 0:00:04]} Qh7 {[%emt 0:00:37]} 42. Qg5+ {[%emt 0:00:01]} ({Only move:} 42. Qxh7+ $1 $18 Kxh7 43. Bxf7) 42... Kf8 $2 {[%emt 0:00:00][%mdl 8192]} (42... Qg7 $11 43. Qd8+ Qf8 44. Qg5+ Kh8) 43. Qd8+ {[%emt 0:00:10]} Kg7 {[%emt 0:00:01] [#]} 44. Bg5 $1 {[%emt 0:00:30] Threatening mate with Bf6+.} Qg8 {[%emt 0:00:19] [#]} 45. Bf6+ $1 {[%emt 0:00:53]} Nxf6 {[%emt 0:00:12]} 46. exf6+ {[%emt 0:00:08]} (46. Qxb6 Nxh5 47. Qxa6 Qd8 (47... Nf4 48. Kg3 $15) 48. gxh5 Qxh4+ 49. Kg2 Qg4+ (49... Qxd4 50. Qxa5 Qg4+ 51. Kf1 $15) (49... Qxh5 50. Qd3 $11) 50. Kf1 Qxd4 $15 (50... Qxh5 51. Qd3 $11)) 46... Kh7 {[%emt 0:00:09]} 47. Qxb6 {[%emt 0:00:01][%cal Ob6c7][%mdl 4096] Endgame. Intending Qc7! and mate. KQB-KQB} Bd3 {[%emt 0:00:07]} 48. Qc7 {[%emt 0:00:48]} ({Weaker is} 48. Qxa5 Qb8+ 49. Kg1 Be4 $14) 48... Bg6 {[%emt 0:00:02]} 49. Qe5 {[%emt 0:00:02]} (49. Qxa5 Bxh5 50. gxh5 Qg4 $16) 49... Be4 {[%emt 0:00:28]} 50. Qf4 {[%emt 0:02:21] Qc7 would now be deadly.} Bg6 {[%emt 0:00:12]} 51. Qg5 {[%emt 0:00:15]} (51. Bxg6+ $142 Qxg6 52. Qg5) 51... Qb8+ {[%emt 0:00:05]} 52. Kh3 {[%emt 0:00:12] White mates.} Qc7 {[%emt 0:00:02]} 53. Bxg6+ {[%emt 0:00:05]} fxg6 {[%emt 0:00:01] KQ-KQ} 54. h5 {[%emt 0:00:04]} Qc3+ {[%emt 0:00:29]} 55. Kh4 {[%emt 0:00:02]} Qc2 {[%emt 0:00:09]} 56. Qxg6+ {[%emt 0:00:22]} Qxg6 {[%emt 0:00:02]} 57. hxg6+ {[%emt 0:00:02]} Kxg6 {[%emt 0:00:01]} 58. g5 {[%emt 0:00:01]} e5 {[%emt 0:00:01]} 59. Kg4 {[%emt 0:00:15] Weighted Error Value: White=0.43/Black=0.66.  Loses game:     	---       	Black=3      Missed win:     	White=2     	---        Mistake:       	White=2     	Black=6      Inaccurate:     	---       	Black=4      OK:         	White=13    	Black=9      Best:        	White=5     	---} 1-0

[Event "Czech Open Rapid G1 2024"]
[Site "Pardubice"]
[Date "2024.07.18"]
[Round "8.16"]
[White "Mica, Marek"]
[Black "Ptacek, Lubos"]
[Result "1-0"]
[Annotator "TA"]
[ECO "A20"]
[WhiteElo "2375"]
[BlackElo "2036"]
[PlyCount "83"]
[EventDate "2024.07.16"]
[EventType "swiss"]
[EventCountry "CZE"]
[SourceTitle "playchess.com"]
[Source "ChessBase"]
[SourceQuality "1"]
[TimeControl "1200+10"]

{[%evp 9,83,9,17,10,27,6,14,22,28,18,13,1,27,0,24,0,0,4,0,-16,35,19,12,11,31,31,44,21,20,12,11,6,19,30,24,25,49,9,47,48,54,54,56,51,68,24,57,24,79,83,77,52,106,100,106,37,83,50,268,59,116,121,329,333,353,322,291,289,1002,949,29979,29978,29985,29986,2381,596]} 1. a3 {[%emt 0:00:04]} e5 {[%emt 0:00:02]} 2. c4 {[%emt 0:00:02]} Nf6 {[%emt 0:00:04]} 3. d3 {[%emt 0:00:02]} Nc6 {[%emt 0:00:05]} 4. b4 {[%emt 0:00:33]} d6 {[%emt 0:00:10]} 5. g3 {[%emt 0:00:06]} Be7 {[%emt 0:00:06]} 6. Bg2 {[%emt 0:00:03]} O-O {[%emt 0:00:49]} 7. Nc3 {[%emt 0:00:03]} Nd4 {[%emt 0:00:13]} 8. e3 {[%emt 0:00:09] The position is equal.} Ne6 {[%emt 0:00:04]} 9. Bb2 {[%emt 0:00:08]} c6 {[%emt 0:00:04]} 10. Nge2 {[%emt 0:00:11]} h6 {[%emt 0:01:03]} 11. Qb3 {[%emt 0:00:45]} Nc7 {[%emt 0:00:38]} 12. h3 {[%emt 0:00:19]} Be6 {[%emt 0:00:10]} 13. O-O {[%emt 0:00:06]} d5 {[%emt 0:00:34]} 14. cxd5 {[%emt 0:00:18]} Nfxd5 {[%emt 0:00:13]} (14... cxd5 $11 15. Qc2 Bd6) 15. Nxd5 {[%emt 0:00:02]} Nxd5 {[%emt 0:00:02]} 16. Qc2 {[%emt 0:00:11][%cal Oe3e4]} (16. Bxe5 $2 Nf4 (16... Nxe3 17. Qc3 $17) 17. Qb2 Nxd3 $19 (17... Nxh3+ 18. Kh2 $16)) 16... Bd6 {[%emt 0:00:08]} 17. d4 {[%emt 0:00:12]} Qc7 {[%emt 0:02:03]} 18. e4 {[%emt 0:00:35]} (18. dxe5 $5 Bxe5 19. Nd4 $16) 18... Nb6 {[%emt 0:00:32]} 19. dxe5 {[%emt 0:00:20]} Bxe5 {[%emt 0:00:06]} 20. Nd4 {[%emt 0:00:15]} Rfe8 {[%emt 0:01:10]} 21. f4 {[%emt 0:00:11] Black must now prevent Nxe6.} Bxd4+ {[%emt 0:00:11]} 22. Bxd4 {[%emt 0:00:02]} Rad8 {[%emt 0:00:01]} 23. Rad1 {[%emt 0:00:25]} Bc4 {[%emt 0:00:41]} 24. Rfe1 {[%emt 0:00:09]} Bb5 {[%emt 0:00:06]} 25. Qc3 {[%emt 0:00:23]} f6 {[%emt 0:00:46]} 26. e5 {[%emt 0:02:01]} fxe5 {[%emt 0:00:03]} 27. Bxe5 {[%emt 0:00:01] A strong pair of Bishops.} Qf7 {[%emt 0:00:21]} 28. Kh2 {[%emt 0:01:07]} Ba4 {[%emt 0:00:22]} (28... Rxd1 $11 {keeps the balance.} 29. Rxd1 h5) 29. Rxd8 $16 {[%emt 0:00:32]} Rxd8 {[%emt 0:00:02] Black is weak on the dark squares} 30. f5 {[%emt 0:02:09][%cal Bf4f5,Bf5f6][%mdl 32] Strongly threatening f6.} Nd5 {[%emt 0:00:34]} (30... Re8 $1 $14) 31. Qd4 $36 {[%emt 0:00:54][%mdl 2048] White has strong initiative.} Re8 {[%emt 0:00:39]} 32. Re4 {[%emt 0:01:39]} (32. Qxa7 $16 Bb3 33. Qf2) 32... Ne7 {[%emt 0:03:39]} (32... Nf6 $14 33. Rh4 Kh7) 33. f6 {[%emt 0:04:23] White is more active.} Nf5 {[%emt 0:00:32] [#]} (33... Ng6 $14) 34. Qb2 $2 {[%emt 0:03:13]} (34. Qxa7 Bc2 35. Re1 Bb3 $16) (34. Qf2 $1 $18) 34... g6 {[%emt 0:02:15]} ({Better is} 34... Bb3 $1 $14) 35. Qf2 {[%emt 0:00:07][%cal Og3g4] Threatens to win with g4!} h5 {[%emt 0:00:59]} (35... Bb3 $16 {might work better.}) 36. g4 $18 {[%emt 0:03:03]} ({Weaker is} 36. Qxa7 Bb3 $16) 36... hxg4 {[%emt 0:00:02]} 37. hxg4 {[%emt 0:00:01]} Nh6 {[%emt 0:00:00][%cal Oe8e5] [#] And now ...Rxe5! would win.} 38. Qf4 {[%emt 0:00:29]} (38. Qxa7 $2 {is the wrong capture.} Bc2 39. Rd4 Rxe5 $19) 38... Kh7 {[%emt 0:00:39]} (38... Qh7 39. Kg1 Bc2) 39. Re3 {[%emt 0:00:31] Threatening mate with Rh3.} Bc2 {[%emt 0:03:49]} 40. Rh3 {[%emt 0:00:21]} g5 {[%emt 0:00:02]} 41. Qxg5 {[%emt 0:00:15][%csl Gg5][%cal Rh3h6]} Qg6 {[%emt 0:00:01]} 42. Bf4 {[%emt 0:00:07] Weighted Error Value: White=0.18 (very precise) /Black=0.54.  Loses game:     	---       	Black=2      Missed win:     	White=1     	---        Mistake:       	White=1     	Black=6      Inaccurate:     	White=5     	Black=4      OK:         	White=12    	Black=10     Best:        	White=3     	---} (42. Qf4 $142 Rf8 43. g5) 1-0